bitfinex/quotes_BTCUSD_20230110
["timestamp","ask_amount","ask_price","bid_price","bid_amount"]
[1673372401902,0.02124544,17339.0,17338.0,2.41749599]
[1673372402163,0.02124544,17339.0,17338.0,2.55649599]
[1673372406308,0.02124544,17339.0,17338.0,1.992534]
[1673372407094,0.02124544,17339.0,17338.0,3.09216256]
[1673372407626,0.02124544,17339.0,17338.0,3.61012731]
[1673372407955,0.02124544,17339.0,17338.0,3.78223642]
[1673372408147,0.02124544,17339.0,17338.0,4.14337142]
[1673372408404,0.02124544,17339.0,17338.0,3.88156683]
[1673372409433,0.02124544,17339.0,17338.0,3.52043183]
[1673372409695,0.02124544,17339.0,17338.0,3.88156683]
[1673372410221,0.02124544,17339.0,17338.0,4.05402365]
[1673372410734,0.02124544,17339.0,17338.0,4.22082365]
[1673372411264,0.02124544,17339.0,17338.0,4.52082365]
[1673372411514,0.02124544,17339.0,17338.0,4.17706445]
[1673372411796,0.03137535,17339.0,17338.0,4.17706445]
[1673372412301,0.03137535,17339.0,17338.0,4.74701607]
[1673372412822,0.03137535,17339.0,17338.0,5.17726691]
[1673372413118,0.00044,17340.0,17339.0,0.24178586]
[1673372413344,0.00044,17340.0,17339.0,4.90010498]
[1673372413605,0.00044,17340.0,17339.0,4.58020422]
[1673372413884,0.00044,17340.0,17339.0,3.94323534]
[1673372414127,0.00044,17340.0,17339.0,3.59909183]
[1673372414415,0.00044,17340.0,17339.0,3.20479863]
[1673372414639,0.00044,17340.0,17339.0,2.29070284]
[1673372414898,0.00044,17340.0,17339.0,2.42970284]
[1673372415153,0.00044,17340.0,17339.0,2.83828516]
[1673372415400,0.00044,17340.0,17339.0,3.3811973]
[1673372415676,0.00044,17340.0,17339.0,2.94927198]
[1673372416191,0.00044,17340.0,17339.0,2.777166]
[1673372416459,0.16724,17340.0,17339.0,2.777166]
[1673372420415,0.16724,17340.0,17339.0,2.577166]
[1673372420981,0.16724,17340.0,17339.0,1.877166]
[1673372423890,0.528375,17340.0,17339.0,1.877166]
[1673372424941,0.528375,17340.0,17339.0,1.33425386]
[1673372425201,0.75076005,17340.0,17339.0,1.33425386]
[1673372425459,0.91756005,17340.0,17339.0,0.18078586]
[1673372425731,3.50434293,17340.0,17339.0,0.04178586]
[1673372426030,2.0510809,17340.0,17339.0,0.04178586]
[1673372426284,2.2172809,17340.0,17339.0,0.04178586]
[1673372426541,1.2160809,17340.0,17339.0,0.04178586]
[1673372427533,1.2170809,17340.0,17339.0,0.14678586]
[1673372427791,2.37093371,17340.0,17339.0,0.14678586]
[1673372428041,2.54401396,17340.0,17339.0,0.14678586]
[1673372428306,3.79922891,17340.0,17339.0,0.14678586]
[1673372428539,4.00863672,17340.0,17339.0,0.14678586]
[1673372428794,4.35387408,17340.0,17339.0,0.14678586]
[1673372429820,4.30197656,17340.0,17339.0,0.14678586]
[1673372430328,3.9567392,17340.0,17339.0,0.14678586]
[1673372431347,3.52423842,17340.0,17339.0,0.14678586]
[1673372432620,3.52423842,17340.0,17339.0,0.16234893]
[1673372432872,3.95561277,17340.0,17339.0,0.16234893]
[1673372435367,4.00371728,17340.0,17339.0,0.16234893]
[1673372435622,4.34865756,17340.0,17339.0,0.16234893]
[1673372436140,4.27684569,17340.0,17339.0,0.16234893]
[1673372436374,3.84547134,17340.0,17339.0,0.16234893]
[1673372437422,3.54547134,17340.0,17339.0,0.16234893]
[1673372437688,2.21910445,17340.0,17339.0,0.16234893]
[1673372439719,2.51910445,17340.0,17339.0,0.16234893]
[1673372440504,1.96040571,17340.0,17339.0,0.16234893]
[1673372440729,0.95890571,17340.0,17339.0,0.16234893]
[1673372441729,0.95040571,17340.0,17339.0,0.16234893]
[1673372441990,0.77797951,17340.0,17339.0,0.16234893]
[1673372443894,0.77797951,17340.0,17339.0,0.12056307]
[1673372444392,0.73899051,17340.0,17339.0,0.12056307]
[1673372445144,0.91141671,17340.0,17339.0,0.12056307]
[1673372445393,1.47011545,17340.0,17339.0,0.12056307]
[1673372445906,1.63631545,17340.0,17339.0,0.12056307]
[1673372448760,1.07761671,17340.0,17339.0,0.12056307]
[1673372449497,0.90519051,17340.0,17339.0,0.12056307]
[1673372449746,0.74381671,17340.0,17339.0,0.12056307]
[1673372450260,0.93819051,17340.0,17339.0,0.11923007]
[1673372450771,1.11061671,17340.0,17339.0,0.11923007]
[1673372451789,1.36931545,17340.0,17339.0,0.11923007]
[1673372452298,1.66931545,17340.0,17339.0,0.11923007]
[1673372452603,2.82322704,17340.0,17339.0,0.11923007]
[1673372452891,2.99574108,17340.0,17339.0,0.11923007]
[1673372453371,2.69574108,17340.0,17339.0,0.11923007]
[1673372453635,2.99574108,17340.0,17339.0,0.11923007]
[1673372453908,2.69574108,17340.0,17339.0,0.11923007]
[1673372454681,2.86841669,17340.0,17339.0,0.11923007]
[1673372454945,3.16841669,17340.0,17339.0,0.11923007]
[1673372455709,2.69595917,17340.0,17339.0,0.11923007]
[1673372455962,3.12733352,17340.0,17339.0,0.11923007]
[1673372456222,3.12733353,17340.0,17339.0,0.11923007]
[1673372456800,3.20032767,17340.0,17339.0,0.11923007]
[1673372457028,3.50032767,17340.0,17339.0,0.11923007]
[1673372457533,3.20032767,17340.0,17339.0,0.11923007]
[1673372457784,3.50032767,17340.0,17339.0,0.11923007]
[1673372458033,3.20032767,17340.0,17339.0,0.11923007]
[1673372458280,3.16841669,17340.0,17339.0,0.11923007]
[1673372458494,3.19917767,17340.0,17339.0,0.11923007]
[1673372460847,3.03790267,17340.0,17339.0,0.11923007]
[1673372461326,2.69296239,17340.0,17339.0,0.11923007]
[1673372461561,2.99296239,17340.0,17339.0,0.11923007]
[1673372462614,2.56158804,17340.0,17339.0,0.11923007]
[1673372463102,2.69364137,17340.0,17339.0,0.11923007]
[1673372464333,3.03928817,17340.0,17339.0,0.11923007]
[1673372464824,2.69364137,17340.0,17339.0,0.11923007]
[1673372466612,2.26158804,17340.0,17339.0,0.11923007]
[1673372470365,2.42748804,17340.0,17339.0,0.11923007]
[1673372470638,2.72748804,17340.0,17339.0,0.11923007]
[1673372470889,3.24676172,17340.0,17339.0,0.11923007]
[1673372471917,3.25526172,17340.0,17339.0,0.11923007]
[1673372472199,2.92256172,17340.0,17339.0,0.11916242]
[1673372476727,3.00260728,17340.0,17339.0,0.11916242]
[1673372476977,2.9802149,17340.0,17339.0,0.11916242]
[1673372477486,2.9802149,17340.0,17339.0,0.03959095]
[1673372480314,3.3138149,17340.0,17339.0,0.03959095]
[1673372480858,3.25854629,17340.0,17339.0,0.03959095]
[1673372483146,3.24923969,17340.0,17339.0,0.03959095]
[1673372483927,3.20747315,17340.0,17339.0,0.03959095]
[1673372485194,3.25234767,17340.0,17339.0,0.03959095]
[1673372486206,3.20747315,17340.0,17339.0,0.03959095]
[1673372486732,3.45003778,17340.0,17339.0,0.03959095]
[1673372486973,3.50481532,17340.0,17339.0,0.03959095]
[1673372487222,3.26225069,17340.0,17339.0,0.03959095]
[1673372487970,3.20740494,17340.0,17339.0,0.03959095]
[1673372490288,3.25215071,17340.0,17339.0,0.03959095]
[1673372490544,3.69742929,17340.0,17339.0,0.03959095]
[1673372490803,3.23326748,17340.0,17339.0,0.03959095]
[1673372491322,3.26195135,17340.0,17339.0,0.03959095]
[1673372491590,3.20742354,17340.0,17339.0,0.03959095]
[1673372492108,3.17876427,17340.0,17339.0,0.03959095]
[1673372492903,3.75815533,17340.0,17339.0,0.03959095]
[1673372493160,3.22071905,17340.0,17339.0,0.03959095]
[1673372493412,3.17876427,17340.0,17339.0,0.03959095]
[1673372493949,3.69745166,17340.0,17339.0,0.03959095]
[1673372494433,3.22247978,17340.0,17339.0,0.03959095]
[1673372494707,3.25111751,17340.0,17339.0,0.03959095]
[1673372495031,3.207402,17340.0,17339.0,0.03959095]
[1673372495184,3.26241687,17340.0,17339.0,0.03959095]
[1673372495698,3.207402,17340.0,17339.0,0.03959095]
[1673372496229,3.2559111,17340.0,17339.0,0.03959095]
[1673372496498,3.25561686,17340.0,17339.0,0.03959095]
[1673372497002,3.81406119,17340.0,17339.0,0.03959095]
[1673372497471,3.76584633,17340.0,17339.0,0.03959095]
[1673372497719,3.25529359,17340.0,17339.0,0.03959095]
[1673372497971,3.207402,17340.0,17339.0,0.01404251]
[1673372498486,3.17657486,17340.0,17339.0,0.01404251]
[1673372498748,3.17657486,17340.0,17336.0,0.44100077]
[1673372499006,0.60518362,17337.0,17336.0,0.44100077]
[1673372499274,1.16619462,17337.0,17336.0,0.01500077]
[1673372499545,2.32010617,17337.0,17336.0,0.01500077]
[1673372501109,2.32010617,17337.0,17336.0,0.10100077]
[1673372501393,2.32010617,17337.0,17336.0,0.01500077]
[1673372501638,2.32910617,17337.0,17336.0,0.10100077]
[1673372502899,2.76138018,17337.0,17336.0,0.10100077]
[1673372503156,2.50201577,17337.0,17336.0,0.10100077]
[1673372503407,2.32910577,17337.0,17336.0,0.10100077]
[1673372504106,2.76137978,17337.0,17336.0,0.10100077]
[1673372504364,2.50201577,17337.0,17336.0,0.10100077]
[1673372505149,2.76137989,17337.0,17336.0,0.10100077]
[1673372505402,2.50201577,17337.0,17336.0,0.10100077]
[1673372505656,2.83341946,17337.0,17336.0,0.10100077]
[1673372506946,2.88237038,17337.0,17336.0,0.10100077]
[1673372507471,2.53655117,17337.0,17336.0,0.10100077]
[1673372508249,2.52755117,17337.0,17336.0,0.01500077]
[1673372508726,2.52755117,17337.0,17334.0,1.13539052]
[1673372508727,0.2,17336.0,17334.0,1.13539052]
[1673372509034,0.53395942,17335.0,17334.0,1.13539052]
[1673372509290,0.17294842,17335.0,17334.0,1.13539052]
[1673372510060,0.17294842,17335.0,17334.0,0.59097221]
[1673372510850,0.18294842,17335.0,17334.0,0.66997221]
[1673372512184,0.23976103,17335.0,17334.0,0.09309621]
[1673372512447,2.52571448,17335.0,17334.0,0.09309621]
[1673372512731,3.15755197,17335.0,17334.0,0.09309621]
[1673372513012,2.81165513,17335.0,17334.0,0.09309621]
[1673372513237,2.85743795,17335.0,17334.0,0.09309621]
[1673372513502,3.11407893,17335.0,17334.0,0.09309621]
[1673372514298,2.68180492,17335.0,17334.0,0.09309621]
[1673372514783,2.73979545,17335.0,17334.0,0.09309621]
[1673372515297,3.11380942,17335.0,17334.0,0.09309621]
[1673372515562,3.11381023,17335.0,17334.0,0.09309621]
[1673372516069,2.68180492,17335.0,17334.0,0.09309621]
[1673372517594,3.11379451,17335.0,17334.0,0.09309621]
[1673372518635,2.81137071,17335.0,17334.0,0.09309621]
[1673372519390,3.1567459,17335.0,17334.0,0.09309621]
[1673372519625,3.15672587,17335.0,17334.0,0.09309621]
[1673372519873,3.15672443,17335.0,17334.0,0.09309621]
[1673372520399,2.81137071,17335.0,17334.0,0.09309621]
[1673372520672,3.04780887,17335.0,17334.0,0.09309621]
[1673372521672,3.04780887,17335.0,17334.0,0.09101721]
[1673372522185,2.81137071,17335.0,17334.0,0.09101721]
[1673372523232,2.81137071,17335.0,17334.0,0.09095061]
[1673372523476,3.15656067,17335.0,17334.0,0.09095061]
[1673372523975,2.81129011,17335.0,17334.0,0.09095061]
[1673372527561,2.32248791,17335.0,17334.0,0.03402619]
[1673372527816,2.79643302,17335.0,17334.0,0.04805602]
[1673372528571,3.14155285,17335.0,17334.0,0.04805602]
[1673372530832,2.81821536,17335.0,17334.0,0.04805602]
[1673372531080,2.64559622,17335.0,17334.0,0.04805602]
[1673372531328,2.64559708,17335.0,17334.0,0.04805602]
[1673372535580,3.13275959,17335.0,17334.0,0.04805602]
[1673372535817,3.17527942,17335.0,17334.0,0.04805602]
[1673372536077,3.1327833,17335.0,17334.0,0.04805602]
[1673372536838,3.17664217,17335.0,17334.0,0.04805602]
[1673372539290,3.2995833,17335.0,17334.0,0.04805602]
[1673372539548,2.86813431,17335.0,17334.0,0.04805602]
[1673372540065,2.70133431,17335.0,17334.0,0.04805602]
[1673372541615,2.74716567,17335.0,17334.0,0.01402983]
[1673372541868,2.82741491,17335.0,17334.0,0.01702983]
[1673372542850,2.8729899,17335.0,17334.0,0.01702983]
[1673372543098,2.82741491,17335.0,17334.0,0.01702983]
[1673372543344,3.34614372,17335.0,17334.0,0.01702983]
[1673372543593,2.82741491,17335.0,17334.0,0.01702983]
[1673372543836,3.92301072,17335.0,17334.0,0.01702983]
[1673372547602,3.92301072,17335.0,17334.0,0.00664368]
[1673372547847,3.92301072,17335.0,17334.0,0.0159684]
[1673372548092,3.53537106,17335.0,17334.0,0.0159684]
[1673372549375,3.49507039,17335.0,17334.0,0.0159684]
[1673372551887,2.91820339,17335.0,17334.0,0.0159684]
[1673372552107,4.6923639,17335.0,17334.0,0.0159684]
[1673372552400,3.00115366,17335.0,17334.0,0.0159684]
[1673372557248,3.42566899,17335.0,17334.0,0.0159684]
[1673372557471,3.00115366,17335.0,17334.0,0.0159684]
[1673372566898,2.91980871,17335.0,17334.0,0.0159684]
[1673372567151,2.43977525,17335.0,17334.0,0.0159684]
[1673372567711,2.43977525,17335.0,17334.0,0.00950979]
[1673372567979,3.02130149,17335.0,17334.0,0.00950979]
[1673372568226,3.50133495,17335.0,17334.0,0.00950979]
[1673372568447,4.08072601,17335.0,17334.0,0.00950979]
[1673372568717,3.49919977,17335.0,17334.0,0.00950979]
[1673372568991,3.49919977,17335.0,17334.0,0.01015486]
[1673372569756,4.08072601,17335.0,17334.0,0.01015486]
[1673372570256,4.65759301,17335.0,17334.0,0.01015486]
[1673372571710,4.65759301,17335.0,17334.0,0.00950979]
[1673372574896,6.38906137,17335.0,17334.0,0.01015486]
[1673372575412,6.43891988,17335.0,17334.0,0.01015486]
[1673372575665,4.70745152,17335.0,17334.0,0.01015486]
[1673372576169,3.54905828,17335.0,17334.0,0.01015486]
[1673372576900,3.00856838,17335.0,17334.0,0.01015486]
[1673372577917,1.97417525,17335.0,17334.0,0.76288682]
[1673372578173,1.61316425,17335.0,17334.0,0.52520893]
[1673372578431,2.39138843,17335.0,17334.0,0.51835893]
[1673372578696,2.75239943,17335.0,17334.0,0.51835893]
[1673372578987,2.74389943,17335.0,17334.0,0.51835893]
[1673372579183,2.0633442,17335.0,17334.0,0.51835893]
[1673372579431,2.6837175,17335.0,17334.0,0.51835893]
[1673372579688,2.4243552,17335.0,17334.0,0.51835893]
[1673372579908,2.25131746,17335.0,17334.0,0.51835893]
[1673372582226,2.4243552,17335.0,17334.0,0.51835893]
[1673372583965,2.25118648,17335.0,17334.0,0.51835893]
[1673372584459,2.68358545,17335.0,17334.0,0.51835893]
[1673372584699,2.25118648,17335.0,17334.0,0.51835893]
[1673372585455,1.89017548,17335.0,17334.0,0.51835893]
[1673372586180,2.25118648,17335.0,17334.0,0.51835893]
[1673372586718,2.68358545,17335.0,17334.0,0.01015486]
[1673372586976,2.78452905,17335.0,17334.0,0.01015486]
[1673372587228,2.73870384,17335.0,17334.0,0.01015486]
[1673372588016,2.67330572,17335.0,17334.0,0.01015486]
[1673372588277,3.19409551,17335.0,17334.0,0.01015486]
[1673372588534,3.19409551,17335.0,17334.0,0.00397932]
[1673372588790,3.19409551,17335.0,17334.0,0.01240639]
[1673372589548,3.15325154,17335.0,17334.0,0.01240639]
[1673372590065,3.19722669,17335.0,17334.0,0.01240639]
[1673372592339,3.15325154,17335.0,17334.0,0.01240639]
[1673372592590,3.77448996,17335.0,17334.0,0.01240639]
[1673372593106,3.73011854,17335.0,17334.0,0.01240639]
[1673372593882,3.78068466,17335.0,17334.0,0.01240639]
[1673372594138,3.73011854,17335.0,17334.0,0.01240639]
[1673372594374,3.78323142,17335.0,17334.0,0.01240639]
[1673372595138,3.73011854,17335.0,17334.0,0.01240639]
[1673372595403,3.68829947,17335.0,17334.0,0.01240639]
[1673372595659,5.99677621,17335.0,17334.0,0.01240639]
[1673372599263,6.16267621,17335.0,17334.0,0.01240639]
[1673372600444,6.74420245,17335.0,17334.0,0.01240639]
[1673372600688,6.16267621,17335.0,17334.0,0.01240639]
[1673372601447,6.75662388,17335.0,17334.0,0.01240639]
[1673372602483,6.81024376,17335.0,17334.0,0.01240639]
[1673372602733,6.75663598,17335.0,17334.0,0.01240639]
[1673372607579,7.33816222,17335.0,17334.0,0.00337357]
[1673372607834,7.33816222,17335.0,17334.0,0.00936852]
[1673372608088,6.75663598,17335.0,17334.0,0.00936852]
[1673372608342,7.33816222,17335.0,17334.0,0.00936852]
[1673372608589,6.75663598,17335.0,17334.0,0.00270953]
[1673372608836,6.75663598,17335.0,17334.0,0.00603358]
[1673372610359,3.68818053,17335.0,17334.0,0.00603358]
[1673372611319,3.11131353,17335.0,17334.0,0.00603358]
[1673372611829,3.41131353,17335.0,17334.0,0.00603358]
[1673372612611,2.3162307,17335.0,17334.0,0.00603358]
[1673372612867,2.73952721,17335.0,17334.0,0.00603358]
[1673372613371,2.3077307,17335.0,17334.0,0.00603358]
[1673372613884,2.73955166,17335.0,17334.0,0.00603358]
[1673372614132,2.74805166,17335.0,17334.0,0.00603358]
[1673372616657,2.79347882,17335.0,17334.0,0.00603358]
[1673372617412,2.43187914,17335.0,17334.0,0.88831051]
[1673372617665,2.43187914,17335.0,17334.0,1.05511051]
[1673372617666,2.07081147,17335.0,17334.0,1.05511051]
[1673372617931,1.72538431,17335.0,17334.0,1.05511051]
[1673372618459,1.725393,17335.0,17334.0,1.05511051]
[1673372618961,1.89810827,17335.0,17334.0,1.05511051]
[1673372619239,2.25911927,17335.0,17334.0,1.05511051]
[1673372620414,2.69097951,17335.0,17334.0,1.05511051]
[1673372620676,1.89814755,17335.0,17334.0,1.05511051]
[1673372620938,1.89814755,17335.0,17334.0,0.88831051]
[1673372621187,2.25915855,17335.0,17334.0,0.88831051]
[1673372621906,1.72543834,17335.0,17334.0,0.88831051]
[1673372622431,0.57631832,17335.0,17334.0,0.88831051]
[1673372622897,0.31721795,17335.0,17334.0,0.88831051]
[1673372624910,0.31721795,17335.0,17334.0,0.89594891]
[1673372625940,0.1445,17335.0,17334.0,0.89594891]
[1673372627950,0.1445,17335.0,17334.0,0.89094891]
[1673372628737,0.1445,17335.0,17334.0,0.89429183]
[1673372630287,0.1445,17335.0,17334.0,0.72749183]
[1673372630531,0.31721795,17335.0,17334.0,0.72749183]
[1673372634344,0.31721795,17335.0,17334.0,0.0120149]
[1673372634988,0.67822895,17335.0,17334.0,0.0120149]
[1673372635510,0.31721795,17335.0,17334.0,0.0120149]
[1673372640375,0.31721795,17335.0,17334.0,0.1788149]
[1673372640615,0.1445,17335.0,17334.0,0.1788149]
[1673372641107,0.51721795,17335.0,17334.0,0.1788149]
[1673372641351,0.31721795,17335.0,17334.0,0.1788149]
[1673372644108,0.30871795,17335.0,17334.0,1.28603017]
[1673372644363,0.136,17335.0,17334.0,1.28603017]
[1673372645394,0.4847642,17336.0,17334.0,1.28603017]
[1673372645646,0.005,17335.0,17334.0,1.31003017]
[1673372645911,0.6847642,17336.0,17334.0,1.28603017]
[1673372646170,0.005,17335.0,17334.0,1.31003017]
[1673372647246,0.17771795,17335.0,17334.0,1.31003017]
[1673372647701,0.005,17335.0,17334.0,1.31003017]
[1673372648733,0.005,17335.0,17334.0,2.45818767]
[1673372648981,0.005,17335.0,17334.0,2.81919867]
[1673372649484,0.005,17335.0,17334.0,2.41464117]
[1673372650034,0.005,17335.0,17334.0,2.05363017]
[1673372658444,0.17771795,17335.0,17334.0,2.05363017]
[1673372658707,0.005,17335.0,17334.0,2.05363017]
[1673372658934,0.17771795,17335.0,17334.0,2.05363017]
[1673372661540,1.59093331,17335.0,17334.0,2.05363017]
[1673372661802,1.33183597,17335.0,17334.0,2.05363017]
[1673372662047,0.17771795,17335.0,17334.0,2.05363017]
[1673372662546,0.43681832,17335.0,17334.0,2.05363017]
[1673372662829,1.59094283,17335.0,17334.0,2.05363017]
[1673372664120,0.43681832,17335.0,17334.0,2.05363017]
[1673372664591,0.005,17335.0,17334.0,2.41464117]
[1673372665102,0.005,17335.0,17334.0,2.05363017]
[1673372665336,0.005,17335.0,17334.0,2.41464117]
[1673372665550,0.005,17335.0,17334.0,2.05363017]
[1673372670299,0.005,17335.0,17334.0,1.88693017]
[1673372671550,0.17771795,17335.0,17334.0,1.88693017]
[1673372672030,0.005,17335.0,17334.0,1.88693017]
[1673372672533,0.005,17335.0,17334.0,1.72013017]
[1673372676624,0.17771795,17335.0,17334.0,1.72013017]
[1673372677108,0.005,17335.0,17334.0,1.72013017]
[1673372677352,0.17771795,17335.0,17334.0,1.72013017]
[1673372677840,0.43681832,17335.0,17334.0,1.72013017]
[1673372678057,1.59092469,17335.0,17334.0,1.72013017]
[1673372678750,0.17771795,17335.0,17334.0,1.72013017]
[1673372678999,0.43681832,17335.0,17334.0,1.72013017]
[1673372679267,1.59092187,17335.0,17334.0,1.72013017]
[1673372680494,1.59092187,17335.0,17334.0,1.1898149]
[1673372680728,1.76363108,17335.0,17334.0,1.1898149]
[1673372681243,2.12464208,17335.0,17334.0,1.1898149]
[1673372681734,1.76363108,17335.0,17334.0,1.1898149]
[1673372683755,1.76363108,17335.0,17334.0,1.1778]
[1673372684276,2.19545204,17335.0,17334.0,1.1778]
[1673372684532,1.76363108,17335.0,17334.0,1.1778]
[1673372684774,1.76363108,17335.0,17334.0,1.19399993]
[1673372687011,1.59115499,17335.0,17334.0,1.19399993]
[1673372687261,1.76363108,17335.0,17334.0,1.19399993]
[1673372687503,1.59115477,17335.0,17334.0,1.19399993]
[1673372688003,0.43705122,17335.0,17334.0,1.19399993]
[1673372688267,1.59115261,17335.0,17334.0,1.19399993]
[1673372689963,0.17795085,17335.0,17334.0,1.82989718]
[1673372692477,0.43705122,17335.0,17334.0,1.82989718]
[1673372692725,1.591157,17335.0,17334.0,1.82989718]
[1673372693243,1.93658416,17335.0,17334.0,1.82989718]
[1673372693508,1.591157,17335.0,17334.0,1.82989718]
[1673372694008,1.76363331,17335.0,17334.0,1.82989718]
[1673372694512,1.93658739,17335.0,17334.0,1.82989718]
[1673372694752,1.59115917,17335.0,17334.0,1.82989718]
[1673372694996,1.76363331,17335.0,17334.0,1.82989718]
[1673372695242,1.9365836,17335.0,17334.0,1.82989718]
[1673372695484,1.76363331,17335.0,17334.0,1.82989718]
[1673372698432,1.59115367,17335.0,17334.0,1.82989718]
[1673372700425,1.76363331,17335.0,17334.0,1.19399993]
[1673372700677,1.9363539,17335.0,17334.0,1.19399993]
[1673372700932,2.6137328,17335.0,17334.0,1.19399993]
[1673372701179,1.9363539,17335.0,17334.0,1.19399993]
[1673372701676,2.19314713,17335.0,17334.0,1.19399993]
[1673372701917,1.9337259,17335.0,17334.0,1.19399993]
[1673372702155,2.24993954,17335.0,17334.0,1.19399993]
[1673372702664,1.9335778,17335.0,17334.0,1.19399993]
[1673372705315,1.7611638,17335.0,17334.0,1.19399993]
[1673372705559,1.9335778,17335.0,17334.0,1.19399993]
[1673372705814,2.25125458,17335.0,17334.0,1.19399993]
[1673372707920,2.25059047,17335.0,17334.0,1.19399993]
[1673372708478,1.9335778,17335.0,17334.0,1.19399993]
[1673372709181,1.76118329,17335.0,17334.0,1.19399993]
[1673372709887,1.76118329,17335.0,17334.0,1.1821765]
[1673372710858,1.9335778,17335.0,17334.0,1.1821765]
[1673372711116,2.2945888,17335.0,17334.0,1.1821765]
[1673372711368,1.76119024,17335.0,17334.0,1.1821765]
[1673372713101,2.1930112,17335.0,17334.0,1.1821765]
[1673372713310,1.9335778,17335.0,17334.0,1.1821765]
[1673372714666,2.19302562,17335.0,17334.0,1.1821765]
[1673372714935,1.76120466,17335.0,17334.0,1.1821765]
[1673372718841,1.71120466,17335.0,17334.0,1.1821765]
[1673372719736,1.71120466,17335.0,17334.0,1.19255651]
[1673372721675,1.5387701,17335.0,17334.0,1.76284757]
[1673372723050,0.43244042,17335.0,17334.0,1.76284757]
[1673372724346,0.42244042,17335.0,17334.0,1.76284757]
[1673372724584,0.1729926,17335.0,17334.0,1.76284757]
[1673372725087,0.1729926,17336.0,17334.0,1.76284757]
[1673372725372,0.1729926,17336.0,17335.0,0.50930246]
[1673372725647,0.1729926,17336.0,17335.0,1.28616946]
[1673372726450,0.1729926,17336.0,17335.0,1.08616946]
[1673372726650,0.1779926,17336.0,17335.0,1.08616946]
[1673372726907,0.1729926,17336.0,17335.0,1.10091243]
[1673372727171,0.2249926,17336.0,17335.0,1.10691243]
[1673372727418,0.1729926,17336.0,17335.0,1.10091243]
[1673372727691,0.1839926,17336.0,17335.0,1.14491243]
[1673372728204,0.35642716,17336.0,17335.0,1.14491243]
[1673372729164,0.34542716,17336.0,17335.0,1.10091243]
[1673372729451,0.39742716,17336.0,17335.0,1.10691243]
[1673372729693,0.34542716,17336.0,17335.0,1.10091243]
[1673372729936,0.52934888,17336.0,17335.0,1.14491243]
[1673372730177,0.52934889,17336.0,17335.0,1.14491243]
[1673372730435,0.35642716,17336.0,17335.0,1.14491243]
[1673372730686,0.18392016,17336.0,17335.0,1.14491243]
[1673372730943,0.35642716,17336.0,17335.0,1.14491243]
[1673372732901,0.35642716,17336.0,17335.0,1.15644788]
[1673372733143,0.61580799,17336.0,17335.0,1.15644788]
[1673372733391,0.97681899,17336.0,17335.0,1.15644788]
[1673372733896,0.61580799,17336.0,17335.0,1.15644788]
[1673372735649,0.78872104,17336.0,17335.0,1.15644788]
[1673372735908,0.44329388,17336.0,17335.0,1.15644788]
[1673372738380,0.44310714,17336.0,17335.0,1.15644788]
[1673372738632,0.7885343,17336.0,17335.0,1.15644788]
[1673372738866,1.76970651,17336.0,17335.0,0.64714542]
[1673372739205,2.66413531,17336.0,17335.0,0.63747942]
[1673372739722,2.34801169,17336.0,17335.0,0.63747942]
[1673372739965,2.66414675,17336.0,17335.0,0.63747942]
[1673372740457,2.34801169,17336.0,17335.0,0.63747942]
[1673372741883,2.66414759,17336.0,17335.0,0.63747942]
[1673372742888,2.66414759,17336.0,17335.0,0.07027842]
[1673372743672,2.65914759,17336.0,17335.0,0.07027842]
[1673372744178,2.31372043,17336.0,17335.0,0.07027842]
[1673372744429,2.31424136,17336.0,17335.0,0.07027842]
[1673372744697,2.18189947,17336.0,17335.0,0.07027842]
[1673372744951,1.87603422,17336.0,17335.0,0.07027842]
[1673372745205,3.04672648,17336.0,17335.0,0.07027842]
[1673372745728,2.47864542,17336.0,17335.0,0.02705267]
[1673372745993,3.05547942,17336.0,17335.0,0.04040524]
[1673372746256,3.05547942,17336.0,17335.0,0.02800524]
[1673372746557,0.05757358,17335.0,17333.0,0.00192738]
[1673372746772,2.42909252,17334.0,17333.0,0.00192738]
[1673372747028,2.72909252,17334.0,17333.0,0.00192738]
[1673372747766,2.72909252,17334.0,17333.0,0.00292738]
[1673372748755,2.77125797,17334.0,17333.0,0.00292738]
[1673372749014,2.77125797,17334.0,17333.0,0.00192738]
[1673372749263,2.77125797,17334.0,17333.0,0.00292738]
[1673372749519,2.84396185,17334.0,17333.0,0.00292738]
[1673372749765,2.58724665,17334.0,17333.0,0.01363607]
[1673372750005,3.01910529,17334.0,17333.0,0.01363607]
[1673372751780,2.97693984,17334.0,17333.0,0.01363607]
[1673372752778,3.02224581,17334.0,17333.0,0.01363607]
[1673372753524,3.06759267,17334.0,17333.0,0.01363607]
[1673372753778,3.36759267,17334.0,17333.0,0.01363607]
[1673372754024,3.36222015,17334.0,17333.0,0.01363607]
[1673372754279,3.05145677,17334.0,17333.0,0.01363607]
[1673372754527,3.35996995,17334.0,17333.0,0.01363607]
[1673372755767,3.02194188,17334.0,17333.0,0.00273607]
[1673372756016,4.82214552,17334.0,17333.0,0.00273607]
[1673372756260,4.82123344,17334.0,17333.0,0.00273607]
[1673372756772,4.82123344,17334.0,17331.0,0.0111572]
[1673372757027,0.93595268,17332.0,17331.0,0.0111572]
[1673372757272,2.75111294,17332.0,17331.0,0.0111572]
[1673372757521,2.75961294,17332.0,17331.0,0.0111572]
[1673372758558,2.47161294,17332.0,17331.0,0.0151572]
[1673372758802,2.94411466,17332.0,17331.0,0.0151572]
[1673372759091,2.59899884,17332.0,17331.0,0.0151572]
[1673372759298,2.81097481,17332.0,17331.0,0.0111572]
[1673372759573,3.19235177,17332.0,17331.0,0.0141572]
[1673372759810,3.18735177,17332.0,17331.0,0.0111572]
[1673372760089,1.8602325,17332.0,17331.0,0.0111572]
[1673372760836,1.9942325,17332.0,17331.0,0.0111572]
[1673372761327,1.61785554,17332.0,17331.0,0.0111572]
[1673372763085,0.89221868,17332.0,17331.0,0.0111572]
[1673372763355,0.89221868,17332.0,17331.0,0.011024]
[1673372763589,0.71975815,17332.0,17331.0,0.011024]
[1673372764609,0.660275,17332.0,17331.0,0.40364189]
[1673372764862,0.134,17332.0,17331.0,1.86638973]
[1673372765113,0.134,17332.0,17331.0,2.22746473]
[1673372765611,0.134,17332.0,17331.0,1.86638973]
[1673372766357,0.134,17332.0,17331.0,2.22746473]
[1673372766629,0.134,17332.0,17331.0,1.12368973]
[1673372766866,0.134,17332.0,17331.0,0.588024]
[1673372767384,0.24783649,17333.0,17331.0,0.588024]
[1673372767913,0.01,17332.0,17331.0,0.606024]
[1673372768158,0.24783649,17333.0,17331.0,0.588024]
[1673372768423,0.24783649,17333.0,17331.0,0.606024]
[1673372768424,0.25783649,17333.0,17331.0,0.606024]
[1673372768894,0.24783649,17333.0,17331.0,0.588024]
[1673372769147,0.01,17332.0,17331.0,0.606024]
[1673372770152,0.24783649,17333.0,17331.0,0.588024]
[1673372770497,0.25783649,17333.0,17331.0,0.588024]
[1673372770713,0.01,17332.0,17331.0,0.606024]
[1673372770971,0.24783649,17333.0,17331.0,0.588024]
[1673372771226,0.25783649,17333.0,17331.0,0.606024]
[1673372771464,0.24783649,17333.0,17331.0,0.588024]